Cogmind - Beta 14 @@@ ROGUE MODE // 2025.04.08 @ 17:40:24 Player: NewsofPE Result: Destroyed by G-34 Mercenary with Small Laser Performance ------------- Evolutions (0) 0 Regions Visited (1) 200 Robots Destroyed (10) 50 Value Destroyed (281) 281 Prototype IDs (0) 0 Alien Tech Used (0) 0 Bonus (0) 0 TOTAL SCORE: 531 Bonus ------- None Cogmind --------- Core Integrity 0/250 Matter 286/300 Energy 154/160 System Corruption 0% Temperature Cool (78) Movement Rolling (80) Location -10/Materials Parts ------- > --- POWER (1) -------- Light Nuclear Core > --- PROPULSION (2) --- Wheel Wheel > --- UTILITY (2) ------ ECM Suite ECM Suite > --- WEAPON (2) ------- Small Laser Light Assault Rifle > --- INVENTORY (5) ---- Ion Engine Large Storage Unit Improved Terrain Scanner Peak State ------------ > --- POWER ------------ Light Nuclear Core > --- PROPULSION ------- Wheel Wheel > --- UTILITY ---------- Large Storage Unit Improved Terrain Scanner > --- WEAPON ----------- Small Laser Light Assault Rifle > --- INVENTORY -------- Ion Engine Light Ion Engine Light Ion Engine ECM Suite ECM Suite [Rating: 11] Favorites ----------- Power Light Ion Engine Engine Light Ion Engine Power Core Light Nuclear Core Propulsion Wheel Wheel Wheel Utility Small Storage Unit Device Seismic Detector Storage Small Storage Unit Weapon Light Assault Rifle Energy Gun Small Laser Ballistic Gun Light Assault Rifle Build | -11 -10 ------- Run | Yrd Mat Slots Evolved . | . . Power . | . . Propulsion . | . . Utility . | . . Weapon . | . . Parts Attached 24 | 14 10 Power 5 | 3 2 Engine 4 | 3 1 Core 1 | . 1 Reactor . | . . Propulsion 9 | 7 2 Treads . | . . Leg . | . . Wheel 9 | 7 2 Hover . | . . Flight . | . . Utility 6 | 2 4 Device 4 | 1 3 Storage 2 | 1 1 Processor . | . . Hackware . | . . Protection . | . . Artifact . | . . Weapon 4 | 2 2 Energy Gun 1 | . 1 Energy Cannon . | . . Ballistic Gun 3 | 2 1 Ballistic Cannon . | . . Launcher . | . . Special Weapon . | . . Impact Weapon . | . . Slashing Weapon . | . . Piercing Weapon . | . . Special Melee Weapon . | . . Unidentified Prototypes . | . . Parts Lost 11 | 5 6 Power 3 | 2 1 Propulsion 5 | 3 2 Utility 1 | . 1 Weapon 2 | . 2 Highest Loss Streak 3 | 3 3 To Critical Strikes 1 | 1 . Average Slot Usage (%) 90 | . 90 Engine 11 | . 11 Core 2 | . 2 Wheel 26 | . 26 Device 9 | . 9 Storage 11 | . 11 Energy Gun 12 | . 12 Ballistic Gun 14 | . 14 Peak Build Rating 11 | 8 11 Average Rating 5 | 5 7 On Entrance 4 | . 8 Naked Turns . | . . Heaviest Build 26 | 11 26 Greatest Support 26 | 26 26 Greatest Overweight (x) 1 | . 1 Average Overweight (x) . | . . Largest Inventory Capacity 15 | 8 15 Average Capacity 8 | 7 8 Most Carried 8 | 8 8 Average Carried 3 | 2 4 Final Capacity 8 | 8 5 Final Carried 8 | 8 3 Class Distribution -------------------- 88% | Scavenger-Mutant 11% | Mutant Dominant Class ---------------- Mutant | -10/Materials Resources | -11 -10 ----------- Run | Yrd Mat Matter Collected 496 | 380 116 Remotely . | . . Salvage Created 494 | 122 372 Parts 26 | . 26 Haulers Intercepted . | . . Recyclers Shooed . | . . Parts Field Recycled . | . . Retrieved Matter . | . . Parts Self-Destructed . | . . Prevented . | . . Kills | -11 -10 ------- Run | Yrd Mat Combat Hostiles Destroyed 18 | 8 10 Guns 18 | 8 10 Classes Destroyed 3 | 1 2 Swarmer 3 | . 3 Grunt 7 | . 7 Assembled 8 | 8 . Best Kill Streak 3 | 2 3 Combat Bots Only 3 | 2 3 Max Kills in Single Turn 1 | 1 1 Gunslinging . | . . Exploded . | . . Melee . | . . Uniques/NPCs Destroyed . | . . Combat | -11 -10 -------- Run | Yrd Mat Hostile Shots Fired 92 | 40 52 Missed 27 | 10 17 Damage Taken 890 | 487 403 Core 254 | 122 132 Absorbed by Shields . | . . Core Remaining (%) 51 | 51 . Volleys Fired 84 | 30 54 Largest 2 | 2 2 Hottest 60 | 40 60 Shots Fired 156 | 57 99 Gun 156 | 57 99 Cannon . | . . Launcher . | . . Special . | . . Kinetic 117 | 57 60 Thermal 39 | . 39 Explosive . | . . Electromagnetic . | . . Robot Hit Streak 9 | 9 7 Robot Miss Streak 12 | 3 12 Penetration Max . | . . Secondary Targets 2 | 1 1 Max Gunslinging Chain 1 | 1 1 Shots Hit Robots 85 | 38 47 Core Hits 43 | 22 21 Critical Kills 1 | 1 . Critical Parts Destroyed . | . . Critical Strikes 1 | 1 . Destroy 1 | 1 . Melee Attacks . | . . Impact . | . . Slashing . | . . Piercing . | . . Sneak Attacks . | . . Combat Hostiles . | . . Follow-up Attacks . | . . Damage Inflicted 735 | 312 423 Guns 735 | 312 423 Cannons . | . . Explosions . | . . Melee . | . . Ramming . | . . Kinetic 589 | 312 277 Thermal 146 | . 146 Explosive . | . . Electromagnetic . | . . Impact . | . . Slashing . | . . Piercing . | . . Highest Corruption . | . . Average Corruption . | . . Corruption Purged . | . . Corruption Blocked . | . . Overload Shots . | . . Overflow Damage . | . . Projectiles . | . . Explosions . | . . Melee . | . . Knockbacks . | . . Impact . | . . Kinetic . | . . Secondary . | . . Self-Inflicted Damage . | . . Shots . | . . Rammed . | . . Targets Rammed . | . . Kicked . | . . Crushed . | . . Highest Temperature 72 | 20 72 Average Temperature 19 | 20 19 Received Heat Transfer 278 | 80 198 Siege Activations . | . . Robots Corrupted . | . . Combat Hostiles . | . . Parts Fried . | . . Impact Corruptions . | . . Robots Melted . | . . Combat Hostiles . | . . Parts Melted . | . . Heat Transferred 325 | . 325 Parts Sabotaged . | . . Parts Stolen . | . . Parts Stripped . | . . Power Chain Reactions . | . . Alert | -11 -10 ------- Run | Yrd Mat Peak Influence 125 | . 125 Initial . | . . Average 10 | . 67 Maximum Alert Level . | . . Low Security (%) 100 | 100 100 Level 1 . | . . Level 2 . | . . Level 3 . | . . Level 4 . | . . Level 5 . | . . High Security . | . . Max Security . | . . Squads Dispatched 4 | . 4 Investigation 1 | . 1 Extermination . | . . Reinforcement 3 | . 3 Assault . | . . Garrison . | . . Intercept . | . . Searches Triggered . | . . Construction Impeded . | . . Haulers Reinforced . | . . Active Scanning Responses . | . . Cargo Convoy Interrupts . | . . Stealth | -11 -10 --------- Run | Yrd Mat Distress Signals 1 | . 1 Communications Jammed . | . . Distress Signals . | . . Times Spotted 31 | 8 23 Peak Tracking Total 4 | 2 4 Tactical Retreats 1 | . 1 Traps | -11 -10 ------- Run | Yrd Mat Traps Triggered 1 | . 1 Indirectly . | . . Trap Hack Attempts . | . . Triggered . | . . Disarmed . | . . Reprogrammed . | . . Reused . | . . Traps Extracted . | . . Installed . | . . Triggered . | . . Machines | -11 -10 ---------- Run | Yrd Mat Machines Disabled . | . . Max in Single Turn . | . . Machines Repaired . | . . Machines Dismantled . | . . Machines Sabotaged . | . . Overloaded Fab Kills . | . . Hacking | -11 -10 --------- Run | Yrd Mat Machines Accessed 1 | . 1 Terminals . | . . Fabricators . | . . Repair Stations . | . . Recycling Units 1 | . 1 Scanalyzers . | . . Garrison Access . | . . Total Hacks 1 | . 1 Successful 1 | . 1 Failed . | . . Catastrophic . | . . Database Lockouts . | . . Manual . | . . Terminals . | . . Fabricators . | . . Repair Stations . | . . Recycling Units 1 | . 1 Scanalyzers . | . . Garrison Access . | . . Terminal Hacks . | . . Fabricator Hacks . | . . Repair Station Hacks . | . . Recycling Unit Hacks 1 | . 1 Report Inventory 1 | . 1 Scanalyzer . | . . Garrison Access Hacks . | . . Unauthorized Hacks . | . . Terminals . | . . Fabricators . | . . Repair Stations . | . . Recycling Units . | . . Scanalyzers . | . . Garrison Access . | . . Data Cores Recovered . | . . Used . | . . Hacking Detections . | . . Full Trace Events . | . . Feedback Events . | . . Feedback Blocked . | . . Robot Schematics Acquired . | . . Robots Built . | . . Authchips . | . . Time . | . . Total Robot Build Rating . | . . Part Schematics Acquired . | . . Parts Built . | . . Authchips . | . . Time . | . . Total Part Build Rating . | . . Parts Repaired . | . . Time . | . . Parts Recycled . | . . Recycled Matter . | . . Retrieved Matter . | . . Retrieved Components . | . . Parts Scanalyzed . | . . Part Schematics Acquired . | . . Parts Damaged . | . . Bothacking | -11 -10 ------------ Run | Yrd Mat Used RIF Installer . | . . Robots Hacked . | . . Non-combat . | . . Combat . | . . Robot Hacks Applied . | . . Relay Couplers Released . | . . Fabnet Peak Effective % . | . . Robots Rewired . | . . Allies Hacked . | . . Hacks Repelled . | . . Allies | -11 -10 -------- Run | Yrd Mat Total Allies . | . . Largest Group . | . . Highest-Rated Group . | . . Highest-Rated Ally . | . . Total Orders . | . . Ally Attacks . | . . Total Damage . | . . Kills . | . . Allies Corrupted . | . . Allies Melted . | . . Intel | -11 -10 ------- Run | Yrd Mat Robot Analysis Total . | . . Derelict Logs Recovered . | . . Drone Launches . | . . Drone Recoveries . | . . Exploration | -11 -10 ------------- Run | Yrd Mat Turns Passed 5805 | 4868 937 Spaces Moved 1365 | 972 393 Core 4 | 4 . Treads . | . . Legs . | . . Wheels 1361 | 968 393 Hover . | . . Flight . | . . Fastest Speed 50 | 50 80 Average Speed 88 | 89 86 Slowest Speed 100 | 100 95 Overloaded Moves . | . . Propulsion Burnouts . | . . Robots Hopped . | . . Cave-ins Triggered . | . . Exploration Rate (%) 68 | 77 59 Regions Visited 1 Branch Regions . Pre-discovered Areas . | . . Known Exits Taken . | . . Unknown Exits Taken 1 | 1 . Scrap Searched . | . . Spaces Dug . | . . Terrain Destroyed . | . . Melee . | . . Projectile . | . . AOE . | . . Terrain Rammed . | . . Walls Destroyed . | . . Machines Disabled . | . . Actions | -11 -10 --------- Run | Yrd Mat Total 5834 | 4928 906 Wait 4325 | 3889 436 Move 1364 | 971 393 Hop . | . . Pick Up 29 | 22 7 Fast Attach . | . . Attach 18 | 12 6 Detach . | . . Swap 6 | 2 4 Drop 8 | 2 6 Fire 84 | 30 54 Melee . | . . Ram . | . . Kick . | . . Crush . | . . Escape Stasis . | . . Rewire . | . . Trap . | . . Miscellaneous . | . . Route ------- -11/Scrapyard -10/Materials (discovered 3 exits: [*Mat x2] / [*Min]) History --------- Turn | Location | Event 24 | -11/Scrapyard | Discovered new exit (range 15) 1476 | -11/Scrapyard | Assembled infested the area 4380 | -11/Scrapyard | Lost 3 parts (2p1n) 4869 | -11/Scrapyard | Entered Materials 4870 | -10/Materials | Build established: Scavenger-Mutant 4911 | -10/Materials | Core integrity fell below 50% 4953 | -10/Materials | Lost 3 parts (1u2w) 5192 | -10/Materials | Build established: Mutant 5383 | -10/Materials | Discovered new exit (range 12) 5472 | -10/Materials | Discovered new exit (range 6) 5605 | -10/Materials | Core integrity fell below 20% 5777 | -10/Materials | Discovered new exit (range 8) 5806 | -10/Materials | Destroyed by G-34 Mercenary with Small Laser Last Messages --------------- Dropped Sml. Storage Unit. Lgt. Ion Engine destroyed. G-34 Mercenary destroyed. Acquired 33 matter. R-06 Scavenger collects Aluminum Leg. Acquired Ion Engine. R-06 Scavenger collects Sml. Laser. R-06 Scavenger collects Aluminum Leg. O-16 Technician: "IFF HANDSHAKE FAILED. SECURING TERMINAL." ALERT: Hostiles spotted, dispatching reinforcements to Terminal M001. Acquired ECM Suite. Dropped Lgt. Ion Engine. Wheel destroyed. G-34 Mercenary destroyed. Acquired 40 matter. K-01 Serf collects debris. EXIT=FOUND Acquired Wheel. Map ----- +----------------------------------------------------+ | ??????????????????????##+####### #??#?#???? ### | | ??????????????????? ##########+#### | | ??????????????????? # | | ??????????????????? # | | ????????????????????## # | | ?????????????????????# # #### # | | ?????????????????????# # #??# # | | ?????????????????????# #! !#??# # | | ?????????????????????# ##!!!!##??# # | | ?????????????????????? ^""" #######?#?# # | | ?????????????????????? ^ """ #???????#?# # | | ??????????????????????? " " " #?????????# # | | ????????????????????????"R" #?????#?#?# # | | ?????????????????????????"" ##??????#?# # | | ?????????????????????????? #?????????# # | | ??????????????????????????? #????#??#?# # | | ?????????????????????????????# ########### # | | ?????????????????????????????# # | | ?????????????????????????????# | | ?????????????????????????????# | | ????????????#????????????????#== """ """ """ | | ????????????# ?????????????#= """ """ """ | | ????????????# ??#???????#== """ """ """ | | ????????????# # ##????# | | ????????????# #####t | | ????????????# g @ u | | ????????????????#+################# | | ??????????????????????????????????# | | ??????????????????????????????????+ ############ | | ??????????????????????????????????# #??????????? | | ??????????????????????????????????# < #??????????? | | ??????????????????????????????????# #??????????? | | ??????????????????????????????????#####??????????# | | ?????????????????????????????????????????????????? | | ?????????????????????????????????????????????????? | | ?????????????????????????????????????????????????? | | ?????????????????????????????????????????????????? | | ?????????????????????????????????????????????????? | | ?????????????????????????????????????????????????? | | ?????????????????????????????????????????????????? | | ?????????????????????????????????????????????????? | | ?????????????????????????????????????????????????? | | | | | | | | | | | | | | | | | +----------------------------------------------------+ Best States ------------- Heat Dissipation 25 Energy Generation 14 Energy Capacity 160 Matter Stores 300 Matter Capacity 300 Sight Range 16 Terrain Scan Range 16 Terrain Scan Density 10 ECM Strength 2 Evasion (%) 44 Item Schematics ----------------- None Robot Schematics ------------------ None Fabricated ------------ Nothing Alien Tech Used ----------------- None Achievements -------------- None Challenges ------------ None Game ------ Seed ExplosiveIonFacilitator Manual? 0 Play Time 00:23:53 Cumulative 3.2 hours Start 2025.04.08 @ 17:18:53 End 2025.04.08 @ 17:40:24 Sessions 1 Manual Loads 0 Difficulty Rogue Special Mode None Game No. 5 Rogue 5 Adventurer 0 Explorer 0 Win Type - Total 0 Types 0/0/0/0/0/0/0/0/0 Lore% 1 Gallery% 3 Achievement% 5 Wizard Run 0 Options --------- Layout 1 ASCII 0 Keyboard 0 Movement Numpad Keybinds 0 Fullscreen 2 Font 32/SmallcapsGlow Map View 50x35 Zoom Use 0% Tactical HUD 0 Map Filters NONE Filters NONE Steam 1 RUN: cc947a6f-9d02-4145-8a16-beca0702833c